[Event "IV Copa Marcel Duchamp 2020"]
[Site "Montevideo"]
[Date "2020.02.08"]
[Round "1.6"]
[White "Urrestarazu, Diego"]
[Black "Hungaski, Robert"]
[Result "0-1"]
[ECO "A22"]
[WhiteElo "1837"]
[BlackElo "2504"]
[Annotator "ChessBase"]
[PlyCount "80"]
[EventDate "2020.02.08"]
[EventType "swiss"]
[EventCountry "URU"]
[SourceTitle "playchess.com"]
[Source "ChessBase"]
[SourceQuality "1"]
[TimeControl "5400+30"]

1. c4 {[%emt 0:00:12]} e5 {[%emt 0:00:00]} 2. Nc3 {[%emt 0:00:08]} Nf6 {[%emt 0:00:00]} 3. g3 {[%emt 0:00:24]} d5 {[%emt 0:00:00]} 4. cxd5 {[%emt 0:00:12]} Nxd5 {[%emt 0:00:00]} 5. Bg2 {[%emt 0:00:17]} Nb6 {[%emt 0:00:00]} 6. d3 {[%emt 0:00:52]} Be7 {[%emt 0:00:12]} 7. Nf3 {[%emt 0:00:38]} Nc6 {[%emt 0:00:06]} 8. O-O {[%emt 0:00:21]} O-O {[%emt 0:00:06]} 9. Be3 {[%emt 0:02:33]} Bg4 {[%emt 0:05:14]} 10. Qd2 {[%emt 0:06:28]} Re8 {[%emt 0:03:08]} 11. Rac1 {[%emt 0:11:46]} Bf8 {[%emt 0:05:59]} 12. h3 {[%emt 0:05:22]} Bh5 {[%emt 0:01:48]} 13. Rfd1 {[%emt 0:07:29]} Nd4 {[%emt 0:04:27]} 14. Bxd4 {[%emt 0:06:48]} exd4 {[%emt 0:00:12]} 15. Ne4 {[%emt 0:02:28]} c6 {[%emt 0:09:21]} 16. Nc5 {[%emt 0:08:01]} Bxc5 {[%emt 0:09:45]} 17. Rxc5 {[%emt 0:00:08]} Bxf3 {[%emt 0:02:25]} 18. Bxf3 {[%emt 0:01:07]} Nd7 {[%emt 0:04:09]} 19. Rf5 {[%emt 0:07:07]} g6 {[%emt 0:07:51]} 20. Rf4 {[%emt 0:07:21]} Nf8 {[%emt 0:00:56]} 21. Qb4 {[%emt 0:09:25]} Ne6 {[%emt 0:00:29]} 22. Rh4 {[%emt 0:01:28]} Qb6 {[%emt 0:02:18]} 23. Qd2 {[%emt 0:02:10]} a5 {[%emt 0:04:45]} 24. Rc1 {[%emt 0:09:50]} Qb4 {[%emt 0:01:04]} 25. Qh6 {[%emt 0:01:32]} Nf8 {[%emt 0:00:13]} 26. Rc4 {[%emt 0:02:29]} Qxb2 {[%emt 0:01:36]} 27. Rcxd4 {[%emt 0:00:17]} Qxa2 {[%emt 0:01:47]} 28. Rd7 {[%emt 0:05:52]} Qa1+ {[%emt 0:02:30]} 29. Kg2 {[%emt 0:00:13]} Nxd7 {[%emt 0:00:14]} 30. Qxh7+ {[%emt 0:00:25]} Kf8 {[%emt 0:00:08]} 31. d4 {[%emt 0:00:31]} Ke7 {[%emt 0:04:50]} 32. Rf4 {[%emt 0:00:49]} Rf8 {[%emt 0:04:57]} 33. Qh4+ {[%emt 0:00:28]} Kd6 {[%emt 0:02:17]} 34. Re4 {[%emt 0:00:46]} Kc7 {[%emt 0:02:05]} 35. Qf4+ {[%emt 0:00:23]} Kb6 {[%emt 0:05:45]} 36. d5 {[%emt 0:00:36]} Qf6 {[%emt 0:05:53]} 37. Qe3+ {[%emt 0:00:23]} c5 {[%emt 0:01:52]} 38. Qb3+ {[%emt 0:00:33]} Kc7 {[%emt 0:01:37]} 39. Rf4 {[%emt 0:00:59]} Qd6 {[%emt 0:00:17]} 40. e4 {[%emt 0:00:28]} f6 {[%emt 0:02:06]} 0-1

[Event "IV Copa Marcel Duchamp 2020"]
[Site "Montevideo"]
[Date "2020.02.09"]
[Round "2.11"]
[White "Pichuaga, Juan Pablo"]
[Black "Roselli Mailhe, Bernardo"]
[Result "1/2-1/2"]
[ECO "B23"]
[WhiteElo "2030"]
[BlackElo "2433"]
[Annotator "ChessBase"]
[PlyCount "128"]
[EventDate "2020.02.08"]
[EventType "swiss"]
[EventCountry "URU"]
[SourceTitle "playchess.com"]
[Source "ChessBase"]
[SourceQuality "1"]
[TimeControl "5400+30"]

1. e4 {[%emt 0:00:00]} c5 {[%emt 0:00:00]} 2. Nc3 {[%emt 0:00:00]} e6 {[%emt 0:00:00]} 3. d3 {[%emt 0:00:04]} Nc6 {[%emt 0:01:19]} 4. g3 {[%emt 0:00:07]} d5 {[%emt 0:03:30]} 5. Bg2 {[%emt 0:00:24]} d4 {[%emt 0:03:42]} 6. Nce2 {[%emt 0:01:10]} Bd6 {[%emt 0:05:49]} 7. f4 {[%emt 0:02:30]} f6 {[%emt 0:06:23]} 8. Nf3 {[%emt 0:02:06]} Bd7 {[%emt 0:00:37]} 9. c3 {[%emt 0:03:33]} e5 {[%emt 0:06:50]} 10. O-O {[%emt 0:02:02]} Qb6 {[%emt 0:02:53]} 11. c4 {[%emt 0:08:41]} O-O-O {[%emt 0:04:54]} 12. Rb1 {[%emt 0:02:59]} h6 {[%emt 0:04:44]} 13. a3 {[%emt 0:06:49]} a5 {[%emt 0:02:41]} 14. b3 {[%emt 0:04:06]} Nge7 {[%emt 0:01:56]} 15. Bd2 {[%emt 0:06:42]} Rde8 {[%emt 0:02:07]} 16. f5 {[%emt 0:08:51]} g6 {[%emt 0:03:24]} 17. fxg6 {[%emt 0:08:02]} Nxg6 {[%emt 0:08:02]} 18. Nh4 {[%emt 0:03:01]} Nxh4 {[%emt 0:03:25]} 19. gxh4 {[%emt 0:00:20]} Reg8 {[%emt 0:00:46]} 20. Ng3 {[%emt 0:02:03]} Rg4 {[%emt 0:05:01]} 21. Rxf6 {[%emt 0:09:19]} Be7 {[%emt 0:04:19]} 22. Rxh6 {[%emt 0:08:42]} Rxh6 {[%emt 0:00:19]} 23. Bxh6 {[%emt 0:00:08]} Rxh4 {[%emt 0:00:03]} 24. Qd2 {[%emt 0:03:38]} Qd8 {[%emt 0:01:22]} 25. Rf1 {[%emt 0:01:00]} Qh8 {[%emt 0:07:01]} 26. Bg5 {[%emt 0:00:58]} Bxg5 {[%emt 0:01:02]} 27. Qxg5 {[%emt 0:00:07]} Rxh2 {[%emt 0:01:43]} 28. Nf5 {[%emt 0:03:11]} Rh7 {[%emt 0:01:29]} 29. Qg6 {[%emt 0:01:57]} Bxf5 {[%emt 0:11:27]} 30. exf5 {[%emt 0:01:34]} Rh6 {[%emt 0:00:17]} 31. Qg4 {[%emt 0:03:26]} Qf6 {[%emt 0:00:42]} 32. Qg8+ {[%emt 0:01:29]} Kc7 {[%emt 0:00:48]} 33. Qd5 {[%emt 0:00:27]} Qg5 {[%emt 0:02:34]} 34. Qxc5 {[%emt 0:03:18]} Rf6 {[%emt 0:01:38]} 35. Rf3 {[%emt 0:01:12]} Qc1+ {[%emt 0:01:12]} 36. Kf2 {[%emt 0:00:40]} Qd2+ {[%emt 0:00:41]} 37. Kf1 {[%emt 0:00:46]} Rxf5 {[%emt 0:00:56]} 38. Rxf5 {[%emt 0:00:57]} Qxd3+ {[%emt 0:00:03]} 39. Kg1 {[%emt 0:00:22]} Qxf5 {[%emt 0:00:07]} 40. Bxc6 {[%emt 0:01:04]} bxc6 {[%emt 0:00:19]} 41. Qe7+ {[%emt 0:01:02]} Kc8 {[%emt 0:01:48]} 42. Qe8+ {[%emt 0:00:42]} Kc7 {[%emt 0:00:54]} 43. Qe7+ {[%emt 0:00:09]} Kc8 {[%emt 0:00:29]} 44. Qe8+ {[%emt 0:00:06]} Kb7 {[%emt 0:00:02]} 45. Qe7+ {[%emt 0:01:00]} Ka6 {[%emt 0:00:18]} 46. Qe8 {[%emt 0:00:31]} Qg4+ {[%emt 0:00:55]} 47. Kf2 {[%emt 0:00:18]} Qf4+ 48. Kg2 {[%emt 0:00:13]} Qg5+ {[%emt 0:01:16]} 49. Kf2 {[%emt 0:00:13]} Qh4+ {[%emt 0:00:33]} 50. Kg2 {[%emt 0:00:09]} Qe4+ {[%emt 0:00:48]} 51. Kf2 {[%emt 0:00:58]} Qc2+ {[%emt 0:00:32]} 52. Kg1 {[%emt 0:00:45]} Qd1+ {[%emt 0:00:11]} 53. Kg2 {[%emt 0:00:13]} Qe2+ {[%emt 0:00:10]} 54. Kg1 {[%emt 0:00:25]} Qe1+ {[%emt 0:01:27]} 55. Kh2 {[%emt 0:00:53]} Qf2+ {[%emt 0:00:35]} 56. Kh1 {[%emt 0:00:20]} Qf3+ {[%emt 0:00:31]} 57. Kh2 {[%emt 0:00:22]} Qf4+ {[%emt 0:00:22]} 58. Kg1 {[%emt 0:00:16]} Qg3+ {[%emt 0:00:44]} 59. Kh1 {[%emt 0:00:28]} Qf3+ {[%emt 0:00:33]} 60. Kg1 {[%emt 0:00:05]} d3 {[%emt 0:00:24]} 61. Qa8+ {[%emt 0:00:31]} Kb6 {[%emt 0:00:06]} 62. Qb8+ {[%emt 0:00:10]} Ka6 {[%emt 0:00:18]} 63. Qa8+ {[%emt 0:00:09]} Kb6 {[%emt 0:00:05]} 64. Qb8+ {[%emt 0:00:07]} Ka6 1/2-1/2

[Event "IV Copa Marcel Duchamp 2020"]
[Site "Montevideo"]
[Date "2020.02.09"]
[Round "2.13"]
[White "Brizzi, Milagros Tatiana"]
[Black "Acosta, Pablo Ismael"]
[Result "0-1"]
[ECO "C00"]
[WhiteElo "2022"]
[BlackElo "2416"]
[Annotator "RC"]
[PlyCount "96"]
[EventDate "2020.02.08"]
[EventType "swiss"]
[EventCountry "URU"]
[SourceTitle "playchess.com"]
[Source "ChessBase"]
[SourceQuality "1"]
[TimeControl "5400+30"]

1. e4 {[%emt 0:00:56]} e6 {[%emt 0:00:00]} 2. d3 {[%emt 0:00:16]} c5 {[%emt 0:00:59]} 3. Nf3 {[%emt 0:00:31]} Nc6 {[%emt 0:00:10]} 4. g3 {[%emt 0:00:18]} g6 {[%emt 0:00:08]} 5. Bg2 {[%emt 0:00:31]} Bg7 {[%emt 0:00:07]} 6. O-O {[%emt 0:00:46]} Nge7 {[%emt 0:00:39]} 7. c3 {[%emt 0:05:37]} d6 {[%emt 0:01:15]} 8. Nbd2 {[%emt 0:02:47]} O-O {[%emt 0:00:33]} 9. Re1 {[%emt 0:03:04]} h6 {[%emt 0:05:17]} 10. Nb3 {[%emt 0:08:48]} e5 {[%emt 0:05:00]} 11. d4 {[%emt 0:08:49]} exd4 {[%emt 0:05:57]} 12. cxd4 {[%emt 0:00:34]} Bg4 {[%emt 0:06:58]} 13. Be3 {[%emt 0:09:05]} c4 {[%emt 0:06:20]} 14. Nbd2 {[%emt 0:09:47]} b5 {[%emt 0:01:03]} 15. h3 {[%emt 0:00:26]} Bxf3 {[%emt 0:04:29]} 16. Nxf3 {[%emt 0:00:21]} Kh7 {[%emt 0:04:52]} 17. Qd2 {[%emt 0:04:33]} Qa5 {[%emt 0:04:08]} 18. Qe2 {[%emt 0:09:19]} Rac8 {[%emt 0:05:36]} 19. a3 {[%emt 0:02:32]} Rfe8 {[%emt 0:05:02]} 20. Rad1 {[%emt 0:05:31]} Ng8 {[%emt 0:03:41]} 21. Qc2 {[%emt 0:13:24]} Nf6 {[%emt 0:01:43]} 22. d5 {[%emt 0:02:38]} Nb8 {[%emt 0:06:46]} 23. Bf4 {[%emt 0:02:09]} Rcd8 {[%emt 0:00:43]} 24. Nd4 {[%emt 0:03:04]} Nxd5 {[%emt 0:01:29]} 25. Bd2 {[%emt 0:05:42]} Qa4 {[%emt 0:01:57]} 26. Qxa4 {[%emt 0:00:33]} bxa4 {[%emt 0:00:07]} 27. Ba5 {[%emt 0:00:07]} Nb6 {[%emt 0:00:48]} 28. Bc3 {[%emt 0:00:54]} d5 {[%emt 0:04:45]} 29. exd5 {[%emt 0:00:42]} Rxe1+ {[%emt 0:00:52]} 30. Rxe1 {[%emt 0:00:06]} Nxd5 {[%emt 0:00:13]} 31. Bxd5 {[%emt 0:00:48]} Rxd5 {[%emt 0:00:04]} 32. Re8 {[%emt 0:00:28]} Nd7 {[%emt 0:04:54]} 33. Ne2 {[%emt 0:00:34]} Nb6 {[%emt 0:02:33]} 34. Re7 {[%emt 0:00:37]} Rd7 {[%emt 0:00:13]} 35. Rxd7 {[%emt 0:00:33]} Nxd7 {[%emt 0:00:05]} 36. Nd4 {[%emt 0:00:22]} Nc5 {[%emt 0:03:43]} 37. Kg2 {[%emt 0:00:39]} Ne4 {[%emt 0:00:32]} 38. Kf3 {[%emt 0:00:32]} Nxc3 {[%emt 0:02:35]} 39. bxc3 {[%emt 0:00:04]} Bf8 {[%emt 0:00:26]} 40. Nc2 f5 41. Ke2 {[%emt 0:01:30]} g5 {[%emt 0:00:41]} 42. f3 {[%emt 0:00:27]} Kg6 {[%emt 0:00:10]} 43. Kd2 {[%emt 0:00:31]} Bd6 {[%emt 0:00:44]} 44. g4 {[%emt 0:00:28]} Kf6 {[%emt 0:03:38]} 45. Ne3 {[%emt 0:00:25]} fxg4 46. Nxg4+ {[%emt 0:00:40]} Kg6 {[%emt 0:01:02]} 47. Ke3 {[%emt 0:00:27]} h5 {[%emt 0:00:00]} 48. Nh2 Bxh2 0-1

[Event "IV Copa Marcel Duchamp 2020"]
[Site "Montevideo"]
[Date "2020.02.09"]
[Round "2.28"]
[White "Moccero, Eduardo"]
[Black "Labrador Avendano, Angie Jhoana"]
[Result "1-0"]
[ECO "D04"]
[WhiteElo "1926"]
[BlackElo "1638"]
[Annotator "NA RC"]
[PlyCount "65"]
[EventDate "2020.02.08"]
[EventType "swiss"]
[EventCountry "URU"]
[SourceTitle "playchess.com"]
[Source "ChessBase"]
[SourceQuality "1"]
[TimeControl "5400+30"]

1. d4 d5 {[%emt 0:03:00]} 2. Nf3 {[%emt 0:00:10]} Nf6 {[%emt 0:00:33]} 3. e3 {[%emt 0:00:32]} Bg4 {[%emt 0:02:28]} 4. h3 {[%emt 0:00:43]} Bh5 {[%emt 0:00:18]} 5. g4 {[%emt 0:00:10]} Bg6 {[%emt 0:00:20]} 6. Ne5 {[%emt 0:00:59] D04: Colle System.} Nbd7 {[%emt 0:02:10]} 7. h4 {[%emt 0:00:11]} h5 {[%emt 0:16:49]} (7... e6 $142) 8. Nxg6 {[%emt 0:01:06]} fxg6 {[%emt 0:00:07]} 9. Bd3 {[%emt 0:01:27]} Kf7 {[%emt 0:15:38]} 10. g5 {[%emt 0:01:56]} Ne4 {[%emt 0:03:16]} 11. Qf3+ {[%emt 0:01:20]} Kg8 {[%emt 0:03:34]} 12. Nd2 {[%emt 0:02:26] [#]} Qe8 $146 {[%emt 0:24:24]} ({Predecessor:} 12... e5 13. Nxe4 dxe4 14. Qxe4 Qe8 15. Qxg6 Qxg6 16. Bxg6 Bd6 17. Bd2 exd4 18. exd4 Nf8 {1-0 (42) Liesmann,K (2006)-Ringwelski,M (1998) Germany 2017}) 13. Nxe4 {[%emt 0:01:44]} dxe4 {[%emt 0:00:09]} 14. Qxe4 {[%emt 0:03:01]} c6 {[%emt 0:00:36]} 15. Qxg6 {[%emt 0:05:54]} Qxg6 {[%emt 0:03:29]} 16. Bxg6 {[%emt 0:00:16]} e6 {[%emt 0:00:35]} 17. Bd2 {[%emt 0:00:53]} Bd6 {[%emt 0:01:50]} 18. O-O-O {[%emt 0:01:15]} Kf8 {[%emt 0:00:23]} 19. f4 {[%emt 0:01:03]} Ke7 {[%emt 0:00:57]} 20. Rhf1 {[%emt 0:02:38]} Nf8 {[%emt 0:01:57]} 21. Bd3 {[%emt 0:00:23]} g6 {[%emt 0:00:27]} 22. Rf3 $18 {[%emt 0:03:32]} Rd8 {[%emt 0:05:55]} 23. e4 Bc7 24. f5 {[%emt 0:04:26]} Rg8 {[%emt 0:03:15]} 25. Bb4+ {[%emt 0:04:01]} Bd6 {[%emt 0:04:50]} 26. Bc3 {[%emt 0:00:30]} Bc7 {[%emt 0:04:35]} 27. fxe6 {[%emt 0:01:44]} Nxe6 {[%emt 0:00:15]} 28. Bc4 {[%emt 0:05:11]} Rgf8 29. Rdf1 Bf4+ {[%emt 0:02:02]} 30. Kb1 {[%emt 0:02:33]} Nxd4 {[%emt 0:00:23]} 31. Rxf4 {[%emt 0:00:37]} Rxf4 {[%emt 0:00:05]} 32. Rxf4 {[%emt 0:02:07]} Nb5 {[%emt 0:00:50]} 33. Bf6+ {[%emt 0:00:09]} 1-0

[Event "IV Copa Marcel Duchamp 2020"]
[Site "Montevideo"]
[Date "2020.02.09"]
[Round "2.29"]
[White "Santiso, Daniel"]
[Black "Cardozo, Lucas"]
[Result "1-0"]
[ECO "D00"]
[WhiteElo "1900"]
[BlackElo "2052"]
[Annotator "NA RC"]
[PlyCount "65"]
[EventDate "2020.02.08"]
[EventType "swiss"]
[EventCountry "URU"]
[SourceTitle "playchess.com"]
[Source "ChessBase"]
[SourceQuality "1"]
[TimeControl "5400+30"]

1. d4 {[%emt 0:00:00]} d5 {[%emt 0:02:14]} 2. Bf4 {[%emt 0:00:37]} e6 {[%emt 0:01:25]} 3. e3 {[%emt 0:01:14]} Nf6 {[%emt 0:03:30]} 4. Bd3 {[%emt 0:02:13]} b6 {[%emt 0:21:52]} 5. c3 {[%emt 0:12:09]} Ba6 {[%emt 0:07:32]} 6. Bxa6 {[%emt 0:02:00] [#] D00: 1 d4 d5: Unusual lines.} Be7 $146 {[%emt 0:13:24]} ({Predecessor:} 6... Nxa6 7. Qa4+ c6 8. Qxa6 Qd7 9. Qe2 Be7 10. Nf3 O-O 11. Ne5 Qc8 12. Nd2 c5 13. dxc5 bxc5 {1-0 (37) Ristoja,A (1558)-Cassidy,S (1599) Mali Losinj 2019}) 7. Bb7 {[%emt 0:00:33]} Nbd7 {[%emt 0:06:43]} 8. Bxa8 {[%emt 0:00:17]} Qxa8 {[%emt 0:00:09]} 9. Bxc7 {[%emt 0:00:33]} Qc6 {[%emt 0:00:14]} 10. Be5 {[%emt 0:02:31]} Qb5 {[%emt 0:14:16]} 11. Qe2 {[%emt 0:00:48]} Qc6 {[%emt 0:02:27]} 12. Nd2 {[%emt 0:01:42]} O-O {[%emt 0:02:29]} 13. Ngf3 {[%emt 0:02:05]} Ne4 {[%emt 0:03:12]} 14. Nxe4 {[%emt 0:03:03]} dxe4 {[%emt 0:00:08]} 15. Nd2 {[%emt 0:00:08]} Nxe5 {[%emt 0:05:12]} 16. dxe5 {[%emt 0:00:11]} Qd5 {[%emt 0:00:13]} 17. Qc4 {[%emt 0:03:27]} Qxe5 {[%emt 0:04:31]} 18. Qxe4 {[%emt 0:00:52]} Qb5 {[%emt 0:00:14]} 19. Qc2 {[%emt 0:07:03]} Rd8 {[%emt 0:03:24]} 20. Rd1 {[%emt 0:01:59]} Qd5 {[%emt 0:03:06]} 21. Nf3 {[%emt 0:00:46]} Qxa2 {[%emt 0:00:22]} 22. Rxd8+ {[%emt 0:00:10]} Bxd8 {[%emt 0:00:10]} 23. O-O {[%emt 0:00:05]} Bf6 {[%emt 0:01:16]} 24. Rd1 {[%emt 0:00:55]} g6 {[%emt 0:01:02]} 25. h3 {[%emt 0:00:26]} Kg7 {[%emt 0:00:17]} 26. Nd2 {[%emt 0:01:12]} b5 {[%emt 0:01:33]} 27. Ne4 {[%emt 0:00:25]} Be7 {[%emt 0:00:28]} 28. Rd7 {[%emt 0:00:53]} Ba3 {[%emt 0:01:42]} 29. Qd2 $18 {[%emt 0:04:06]} Qb1+ {[%emt 0:00:30]} 30. Kh2 {[%emt 0:00:23]} Qxe4 {[%emt 0:00:13]} 31. bxa3 {[%emt 0:00:09]} Qa4 {[%emt 0:00:49]} 32. Qd4+ {[%emt 0:00:16]} Qxd4 {[%emt 0:00:05]} 33. exd4 {[%emt 0:00:15]} 1-0

[Event "IV Copa Marcel Duchamp 2020"]
[Site "Montevideo"]
[Date "2020.02.09"]
[Round "2.30"]
[White "Reolon, Victor"]
[Black "Avedisian, Alexander"]
[Result "0-1"]
[ECO "D71"]
[WhiteElo "1644"]
[BlackElo "1892"]
[Annotator "NA RC"]
[PlyCount "104"]
[EventDate "2020.02.08"]
[EventType "swiss"]
[EventCountry "URU"]
[SourceTitle "playchess.com"]
[Source "ChessBase"]
[SourceQuality "1"]
[TimeControl "5400+30"]

1. d4 {[%emt 0:00:31]} Nf6 {[%emt 0:00:00]} 2. c4 {[%emt 0:00:19]} g6 {[%emt 0:00:00]} 3. g3 {[%emt 0:00:45]} Bg7 {[%emt 0:00:02]} 4. Bg2 {[%emt 0:00:08]} O-O {[%emt 0:00:16]} 5. Nf3 {[%emt 0:00:26]} d6 {[%emt 0:00:16]} 6. b3 {[%emt 0:01:51]} c5 {[%emt 0:00:36]} 7. Bb2 {[%emt 0:01:08]} Nc6 {[%emt 0:00:34] 7...Qa5+ is a critical line.} 8. d5 {[%emt 0:04:16] E60: King's Indian: Unusual lines and Fianchetto Variation without Nc3.} Na5 {[%emt 0:04:50]} 9. Nbd2 {[%emt 0:05:18] [#]} b5 $146 {[%emt 0:02:31]} ({Predecessor:} 9... a6 10. O-O Rb8 11. Re1 b5 12. Rc1 Bd7 13. e4 e5 14. dxe6 Bxe6 15. e5 Ng4 16. cxb5 axb5 {1-0 (31) Bispo,L (2223)-Chang,S (2098) Guarapari 2017}) 10. a3 {[%emt 0:10:10]} ({White should try} 10. Bc3 $14) 10... Rb8 {[%emt 0:03:24]} 11. cxb5 {[%emt 0:04:49]} Rxb5 {[%emt 0:07:49]} 12. O-O {[%emt 0:00:40]} Nxd5 {[%emt 0:02:09]} 13. Bxg7 {[%emt 0:02:43]} Kxg7 {[%emt 0:00:09]} 14. Qc2 {[%emt 0:09:41]} Kg8 {[%emt 0:07:55]} 15. Rfb1 {[%emt 0:06:37]} Ba6 {[%emt 0:07:17]} 16. Ng5 {[%emt 0:02:35]} e6 {[%emt 0:10:10]} 17. h4 {[%emt 0:02:00]} Nc6 {[%emt 0:02:31]} 18. e3 {[%emt 0:05:07]} Ne5 {[%emt 0:03:25]} 19. Nc4 {[%emt 0:05:37]} Ng4 {[%emt 0:09:39]} 20. Bh3 {[%emt 0:05:51]} Ngf6 {[%emt 0:04:51]} 21. Rd1 {[%emt 0:02:43]} Ne8 $2 {[%emt 0:16:47] [#]} (21... Rb8 $1 $11 {and Black stays safe.}) 22. Nxe6 $1 {[%emt 0:10:54]} Nxe3 {[%emt 0:00:22]} 23. Nxe3 {[%emt 0:05:27]} ({Stronger than} 23. Nxd8 Nxc2 24. Rab1 Nd4 $17) (23. fxe3 fxe6 24. Bxe6+ Kg7 $11) 23... fxe6 {[%emt 0:00:14]} 24. Bxe6+ {[%emt 0:00:18]} Kg7 {[%emt 0:00:44] [#]} 25. Ng4 {[%emt 0:03:01]} ({Not} 25. a4 Rb8 $14) (25. Bc4 $1 $18) 25... Rb6 {[%emt 0:02:41] [#]} (25... h5 $16) 26. Qd2 {[%emt 0:00:42]} ({Better is} 26. b4 $1 $18 {[%cal Rb4c5]} c4 27. Qb2+ (27. Bxc4 Nf6 $16) 27... Nf6 28. Rac1) 26... Qe7 {[%emt 0:02:12]} (26... Kh8 $16) 27. Re1 {[%emt 0:00:10]} Kh8 {[%emt 0:02:07]} 28. Bd5 {[%emt 0:01:43]} Qg7 {[%emt 0:00:34]} 29. Rab1 {[%emt 0:01:12]} Bc8 {[%emt 0:01:06]} 30. Qe2 {[%emt 0:02:34]} Nf6 {[%emt 0:00:46]} 31. Nxf6 {[%emt 0:00:26]} Qxf6 {[%emt 0:00:09]} 32. Qb2 {[%emt 0:00:33]} Qxb2 {[%emt 0:00:52]} 33. Rxb2 {[%emt 0:00:01]} Bb7 {[%emt 0:01:04]} 34. Bxb7 {[%emt 0:00:55]} Rxb7 {[%emt 0:00:05]} 35. Re6 {[%emt 0:00:49]} Rd8 {[%emt 0:01:29]} 36. Re3 {[%emt 0:02:33]} c4 {[%emt 0:00:47]} 37. b4 {[%emt 0:01:05]} d5 {[%emt 0:00:24]} 38. Rbe2 {[%emt 0:00:13]} d4 {[%emt 0:01:10]} 39. Rd2 {[%emt 0:00:45]} Kg7 {[%emt 0:00:23]} 40. Re4 {[%emt 0:00:11]} Rbd7 {[%emt 0:00:39]} 41. Kf1 {[%emt 0:00:32]} c3 {[%emt 0:01:15]} 42. Rd3 {[%emt 0:01:12]} Rc8 {[%emt 0:02:04]} 43. Re1 {[%emt 0:00:33]} Kf6 {[%emt 0:01:22]} 44. Rf3+ {[%emt 0:00:32]} Kg7 {[%emt 0:00:16]} 45. Rd3 {[%emt 0:00:09]} Rc6 {[%emt 0:01:19]} 46. Rc1 {[%emt 0:01:11] [#]} Kf6 $19 {[%emt 0:00:29]} 47. Re1 {[%emt 0:00:16]} Kf5 {[%emt 0:01:22]} 48. Rf3+ {[%emt 0:00:34]} Kg4 {[%emt 0:00:55]} 49. Kg2 {[%emt 0:00:30]} c2 {[%emt 0:01:20]} 50. Rf4+ {[%emt 0:01:55]} Kh5 {[%emt 0:00:08]} 51. g4+ {[%emt 0:00:39]} Kh6 {[%emt 0:00:14]} 52. Rc1 {[%emt 0:00:28]} d3 {[%emt 0:00:12]} 0-1

[Event "IV Copa Marcel Duchamp 2020"]
[Site "Montevideo"]
[Date "2020.02.09"]
[Round "2.31"]
[White "Pustilnik, Iber"]
[Black "Vassallo, Julio"]
[Result "1-0"]
[ECO "E06"]
[WhiteElo "1892"]
[BlackElo "1630"]
[Annotator "NA RC"]
[PlyCount "53"]
[EventDate "2020.02.08"]
[EventType "swiss"]
[EventCountry "URU"]
[SourceTitle "playchess.com"]
[Source "ChessBase"]
[SourceQuality "1"]
[TimeControl "5400+30"]

1. Nf3 {[%emt 0:00:00]} Nf6 {[%emt 0:00:00]} 2. d4 {[%emt 0:00:00]} e6 {[%emt 0:00:11]} 3. c4 {[%emt 0:00:00]} d5 {[%emt 0:00:35]} 4. g3 {[%emt 0:00:00]} Be7 {[%emt 0:00:59]} 5. Bg2 {[%emt 0:00:00]} O-O {[%emt 0:00:29]} 6. O-O {[%emt 0:01:01]} dxc4 {[%emt 0:00:35]} 7. a4 {[%emt 0:01:11] [#] E05: Open Catalan: 5 Nf3 Be7.} a5 $146 {[%emt 0:05:43]} ({Predecessor:} 7... Nc6 8. a5 Rb8 9. Qc2 Nxd4 10. Nxd4 Qxd4 11. Rd1 Qc5 12. Be3 Qb4 13. Ra4 Qb3 14. Rxc4 Qxc2 15. Rxc2 {½-½ (24) Caruana,F (2822)-Dominguez Perez,L (2739) Saint Louis 2018}) 8. Qc2 {[%emt 0:04:29]} Na6 {[%emt 0:04:18]} 9. Qxc4 {[%emt 0:02:44]} Rb8 {[%emt 0:05:42]} 10. Nc3 {[%emt 0:04:49]} b6 {[%emt 0:07:55]} 11. Ne5 {[%emt 0:17:05]} Nb4 {[%emt 0:14:49]} 12. Nb5 {[%emt 0:24:20]} Ba6 {[%emt 0:15:25]} 13. Bd2 {[%emt 0:08:17]} Rc8 {[%emt 0:17:19]} 14. Bxb4 Bxb4 {[%emt 0:00:24]} 15. Nc6 {[%emt 0:05:23]} Bxb5 {[%emt 0:06:55]} 16. axb5 {[%emt 0:01:41]} Qd7 {[%emt 0:07:46]} 17. e4 {[%emt 0:11:13]} Rfe8 {[%emt 0:04:16]} 18. Rfd1 {[%emt 0:01:01]} h6 {[%emt 0:03:01]} 19. Rac1 $18 {[%emt 0:01:34]} ({Don't play} 19. Nxb4 $6 axb4 20. Qxb4 Red8 $16) 19... Kh8 {[%emt 0:01:02]} 20. Na7 {[%emt 0:01:59]} c5 {[%emt 0:00:58]} 21. Nxc8 {[%emt 0:00:47]} Qxc8 {[%emt 0:00:11]} 22. d5 {[%emt 0:00:26]} exd5 {[%emt 0:00:31]} 23. exd5 {[%emt 0:00:13]} Qf5 {[%emt 0:01:14]} 24. Qf4 {[%emt 0:05:09]} Qxf4 {[%emt 0:00:39]} 25. gxf4 {[%emt 0:00:07]} Re2 {[%emt 0:00:11]} 26. d6 {[%emt 0:00:23]} Nd7 {[%emt 0:00:43]} 27. Bc6 {[%emt 0:00:31]} 1-0